[Event "*** Titled Tuesday Blitz"]
[Site "Chess.com"]
[Date "2020.10.20"]
[Round "3"]
[White "stolencandy13"]
[Black "natelleka"]
[Result "1-0"]
[WhiteElo "2460"]
[BlackElo "2191"]
[TimeControl "180+1"]
[EndTime "10:29:28 PDT"]
[Termination "stolencandy13 won on time"]

1. e4 {[%clk 0:03:00.9]} 1... e5 {[%clk 0:02:59.6]} 2. Nf3 {[%clk 0:03:00.7]}
2... Nf6 {[%clk 0:03:00.1]} 3. Nc3 {[%clk 0:03:00.9]} 3... Bb4 {[%clk
0:02:58.6]} 4. Bc4 {[%clk 0:02:50.1]} 4... Bxc3 {[%clk 0:02:56.8]} 5. dxc3
{[%clk 0:02:49.6]} 5... d6 {[%clk 0:02:57.4]} 6. Qe2 {[%clk 0:02:44.5]} 6... Nc6
{[%clk 0:02:44.6]} 7. h3 {[%clk 0:02:41.4]} 7... Be6 {[%clk 0:02:43.6]} 8. Bb5
{[%clk 0:02:40.3]} 8... a6 {[%clk 0:02:39.2]} 9. Ba4 {[%clk 0:02:36.6]} 9... O-O
{[%clk 0:02:37.4]} 10. Bg5 {[%clk 0:02:35]} 10... b5 {[%clk 0:02:22.7]} 11. Bb3
{[%clk 0:02:34.1]} 11... Na5 {[%clk 0:02:23.1]} 12. O-O {[%clk 0:02:28.1]} 12...
Nc4 {[%clk 0:02:18.2]} 13. Rab1 {[%clk 0:02:20.4]} 13... c5 {[%clk 0:01:52.5]}
14. Rfd1 {[%clk 0:02:16.5]} 14... Qe7 {[%clk 0:01:47]} 15. Nh2 {[%clk
0:01:33.6]} 15... Rfd8 {[%clk 0:01:06.4]} 16. Qf3 {[%clk 0:01:29.7]} 16... h6
{[%clk 0:00:55.8]} 17. Bxf6 {[%clk 0:01:27.7]} 17... Qxf6 {[%clk 0:00:42.6]} 18.
Qxf6 {[%clk 0:01:26.6]} 18... gxf6 {[%clk 0:00:42]} 19. Ng4 {[%clk 0:01:05.5]}
19... Kg7 {[%clk 0:00:35.2]} 20. Bxc4 {[%clk 0:00:47.6]} 20... Bxg4 {[%clk
0:00:19.9]} 21. hxg4 {[%clk 0:00:45.4]} 21... bxc4 {[%clk 0:00:19.3]} 22. Rd2
{[%clk 0:00:42.2]} 22... Kf8 {[%clk 0:00:17.9]} 23. f3 {[%clk 0:00:39.9]} 23...
Ke7 {[%clk 0:00:17.6]} 24. Kf2 {[%clk 0:00:40.4]} 24... Rh8 {[%clk 0:00:16]} 25.
Rbd1 {[%clk 0:00:39.1]} 25... Rad8 {[%clk 0:00:15.2]} 26. Re2 {[%clk 0:00:37.2]}
26... h5 {[%clk 0:00:14.7]} 27. gxh5 {[%clk 0:00:33.7]} 27... Rxh5 {[%clk
0:00:14.6]} 28. Red2 {[%clk 0:00:34.6]} 28... Rhh8 {[%clk 0:00:13.7]} 29. Rd5
{[%clk 0:00:34.5]} 29... Rh5 {[%clk 0:00:12.3]} 30. R5d2 {[%clk 0:00:30.8]}
30... Rg5 {[%clk 0:00:11.7]} 31. Ke3 {[%clk 0:00:29.9]} 31... Rh5 {[%clk
0:00:10.9]} 32. g4 {[%clk 0:00:28.9]} 32... Rh3 {[%clk 0:00:09.8]} 33. Rg1
{[%clk 0:00:27.7]} 33... Ke6 {[%clk 0:00:09.1]} 34. Rgg2 {[%clk 0:00:27.5]}
34... Rb8 {[%clk 0:00:08.7]} 35. b3 {[%clk 0:00:27.2]} 35... cxb3 {[%clk
0:00:08]} 36. cxb3 {[%clk 0:00:27]} 36... a5 {[%clk 0:00:07.2]} 37. Rh2 {[%clk
0:00:25.9]} 37... Rxh2 {[%clk 0:00:06.3]} 38. Rxh2 {[%clk 0:00:26.2]} 38... a4
{[%clk 0:00:06.7]} 39. Rb2 {[%clk 0:00:25.9]} 39... axb3 {[%clk 0:00:05.6]} 40.
axb3 {[%clk 0:00:25.1]} 40... d5 {[%clk 0:00:05.2]} 41. exd5+ {[%clk 0:00:24]}
41... Kxd5 {[%clk 0:00:05.4]} 42. Rd2+ {[%clk 0:00:21]} 42... Kc6 {[%clk
0:00:04.9]} 43. Rb2 {[%clk 0:00:21]} 43... Kd5 {[%clk 0:00:04.2]} 44. c4+ {[%clk
0:00:21]} 44... Kc6 {[%clk 0:00:04]} 45. Ke4 {[%clk 0:00:21.4]} 45... Kd6 {[%clk
0:00:03.5]} 46. Rd2+ {[%clk 0:00:19.8]} 46... Ke6 {[%clk 0:00:03.1]} 47. Rd5
{[%clk 0:00:19.1]} 47... Rxb3 {[%clk 0:00:02.8]} 48. Rxc5 {[%clk 0:00:19.5]}
48... Rb4 {[%clk 0:00:02.8]} 49. Rc6+ {[%clk 0:00:19]} 49... Ke7 {[%clk
0:00:02.3]} 50. Rc8 {[%clk 0:00:16.6]} 50... Ra4 {[%clk 0:00:01.2]} 51. Kf5
{[%clk 0:00:16.4]} 1-0

[Event "*** Titled Tuesday Blitz"]
[Site "Chess.com"]
[Date "2020.10.20"]
[Round "3"]
[White "PattyCastillo"]
[Black "DinaBelenkaya"]
[Result "0-1"]
[WhiteElo "1932"]
[BlackElo "2284"]
[TimeControl "180+1"]
[EndTime "10:29:32 PDT"]
[Termination "DinaBelenkaya won on time"]

1. d4 {[%clk 0:03:00.9]} 1... d5 {[%clk 0:02:56.9]} 2. Nf3 {[%clk 0:03:00.2]}
2... Nf6 {[%clk 0:02:53.3]} 3. e3 {[%clk 0:02:59.5]} 3... c5 {[%clk 0:02:47.1]}
4. Bd3 {[%clk 0:02:54.8]} 4... c4 {[%clk 0:02:45.2]} 5. Be2 {[%clk 0:02:52.4]}
5... Nc6 {[%clk 0:02:46.1]} 6. b3 {[%clk 0:02:50.9]} 6... b5 {[%clk 0:02:41.2]}
7. a4 {[%clk 0:02:49.2]} 7... Qa5+ {[%clk 0:02:17.9]} 8. c3 {[%clk 0:02:40.7]}
8... b4 {[%clk 0:02:14.1]} 9. bxc4 {[%clk 0:02:32.5]} 9... bxc3 {[%clk
0:02:12.9]} 10. O-O {[%clk 0:02:29.2]} 10... dxc4 {[%clk 0:02:11.2]} 11. Bxc4
{[%clk 0:02:22.6]} 11... e6 {[%clk 0:02:09.6]} 12. Bb5 {[%clk 0:02:03.1]} 12...
Bd7 {[%clk 0:02:08.7]} 13. Qb3 {[%clk 0:01:47.4]} 13... a6 {[%clk 0:02:00.1]}
14. Be2 {[%clk 0:01:33.7]} 14... Bb4 {[%clk 0:01:57.2]} 15. Ba3 {[%clk
0:01:28.3]} 15... O-O {[%clk 0:01:46]} 16. Bxb4 {[%clk 0:01:27.4]} 16... Nxb4
{[%clk 0:01:46.9]} 17. Nxc3 {[%clk 0:01:11]} 17... Rab8 {[%clk 0:01:47]} 18. Qd1
{[%clk 0:00:54.1]} 18... Rfc8 {[%clk 0:01:40.3]} 19. Rc1 {[%clk 0:00:50.2]}
19... Nfd5 {[%clk 0:01:35.5]} 20. Nxd5 {[%clk 0:00:46.3]} 20... exd5 {[%clk
0:01:36.4]} 21. Ne5 {[%clk 0:00:46.2]} 21... Bxa4 {[%clk 0:01:34.8]} 22. Qd2
{[%clk 0:00:36.1]} 22... Qb6 {[%clk 0:00:57.6]} 23. Rxc8+ {[%clk 0:00:34]} 23...
Rxc8 {[%clk 0:00:57.6]} 24. Rb1 {[%clk 0:00:31.7]} 24... a5 {[%clk 0:00:56.9]}
25. h4 {[%clk 0:00:26.8]} 25... f6 {[%clk 0:00:54.3]} 26. Nd3 {[%clk 0:00:23]}
26... Bb5 {[%clk 0:00:50]} 27. Nc5 {[%clk 0:00:19.1]} 27... Bxe2 {[%clk
0:00:50.3]} 28. Qxe2 {[%clk 0:00:19]} 28... Ra8 {[%clk 0:00:39.1]} 29. Qg4
{[%clk 0:00:18]} 29... Qc6 {[%clk 0:00:38.3]} 30. Ne6 {[%clk 0:00:15.3]} 30...
Qd7 {[%clk 0:00:35]} 31. Qh3 {[%clk 0:00:09.8]} 31... Ra6 {[%clk 0:00:31.9]} 32.
Nf4 {[%clk 0:00:09.1]} 32... Qxh3 {[%clk 0:00:32.3]} 33. Nxh3 {[%clk 0:00:08.4]}
33... Nd3 {[%clk 0:00:20.2]} 34. Nf4 {[%clk 0:00:04.4]} 34... Nxf4 {[%clk
0:00:19.8]} 35. exf4 {[%clk 0:00:05.3]} 35... a4 {[%clk 0:00:20.6]} 36. Ra1
{[%clk 0:00:05.5]} 36... a3 {[%clk 0:00:21]} 37. Kf1 {[%clk 0:00:05.7]} 37...
Kf7 {[%clk 0:00:12.2]} 38. Ke2 {[%clk 0:00:05.7]} 38... Ke6 {[%clk 0:00:12.8]}
39. Kd3 {[%clk 0:00:05.7]} 39... Kd6 {[%clk 0:00:13]} 40. Ra2 {[%clk 0:00:05.5]}
40... Ra4 {[%clk 0:00:12.6]} 41. g3 {[%clk 0:00:05.2]} 41... Kc6 {[%clk
0:00:12.9]} 42. f5 {[%clk 0:00:04.1]} 42... Kb5 {[%clk 0:00:13.8]} 43. g4 {[%clk
0:00:03.3]} 43... Kb4 {[%clk 0:00:13.8]} 44. g5 {[%clk 0:00:03.6]} 44... Kb3
{[%clk 0:00:14.1]} 45. Ra1 {[%clk 0:00:03]} 45... a2 {[%clk 0:00:14.2]} 46. gxf6
{[%clk 0:00:01.3]} 46... gxf6 {[%clk 0:00:15]} 47. h5 {[%clk 0:00:01.9]} 47...
Kb2 {[%clk 0:00:14]} 0-1

[Event "*** Titled Tuesday Blitz"]
[Site "Chess.com"]
[Date "2020.10.20"]
[Round "3"]
[White "crescentmoon2411"]
[Black "Pultis"]
[Result "1/2-1/2"]
[WhiteElo "2883"]
[BlackElo "2677"]
[TimeControl "180+1"]
[EndTime "10:29:33 PDT"]
[Termination "Game drawn by repetition"]

1. d4 {[%clk 0:03:00.9]} 1... Nf6 {[%clk 0:02:59.8]} 2. Nf3 {[%clk 0:03:01.5]}
2... d5 {[%clk 0:02:59.4]} 3. Bf4 {[%clk 0:03:01.7]} 3... e6 {[%clk 0:02:56.5]}
4. e3 {[%clk 0:03:02.1]} 4... Bd6 {[%clk 0:02:56.8]} 5. Bg3 {[%clk 0:02:59.1]}
5... b6 {[%clk 0:02:56.8]} 6. c4 {[%clk 0:02:47.8]} 6... O-O {[%clk 0:02:54.8]}
7. cxd5 {[%clk 0:02:44.6]} 7... exd5 {[%clk 0:02:52.2]} 8. Nc3 {[%clk
0:02:44.5]} 8... a6 {[%clk 0:02:50.9]} 9. Bd3 {[%clk 0:02:42.9]} 9... h6 {[%clk
0:02:48.8]} 10. O-O {[%clk 0:02:39.7]} 10... Be6 {[%clk 0:02:49.2]} 11. e4
{[%clk 0:02:25.8]} 11... Bxg3 {[%clk 0:02:44.6]} 12. hxg3 {[%clk 0:02:25.6]}
12... dxe4 {[%clk 0:02:41.6]} 13. Nxe4 {[%clk 0:02:26.2]} 13... Nbd7 {[%clk
0:02:37.5]} 14. Re1 {[%clk 0:02:23.7]} 14... Re8 {[%clk 0:02:31.8]} 15. Rc1
{[%clk 0:02:20.3]} 15... Nd5 {[%clk 0:02:21.8]} 16. a3 {[%clk 0:02:15.2]} 16...
N5f6 {[%clk 0:01:01.1]} 17. Qc2 {[%clk 0:02:11.3]} 17... Bd5 {[%clk 0:00:50.1]}
18. Nxf6+ {[%clk 0:02:04.5]} 18... Nxf6 {[%clk 0:00:46.3]} 19. Qxc7 {[%clk
0:01:54.7]} 19... Bxf3 {[%clk 0:00:36.6]} 20. Rxe8+ {[%clk 0:01:48.1]} 20...
Nxe8 {[%clk 0:00:30.6]} 21. Qxd8 {[%clk 0:01:48.5]} 21... Rxd8 {[%clk
0:00:31.5]} 22. gxf3 {[%clk 0:01:49]} 22... a5 {[%clk 0:00:28.3]} 23. Rc6 {[%clk
0:01:31.4]} 23... Rb8 {[%clk 0:00:25.7]} 24. d5 {[%clk 0:01:28.8]} 24... Kf8
{[%clk 0:00:20.3]} 25. d6 {[%clk 0:01:24.8]} 25... Rd8 {[%clk 0:00:20.8]} 26.
Rxb6 {[%clk 0:01:24.7]} 26... Rxd6 {[%clk 0:00:21.4]} 27. Rxd6 {[%clk
0:01:24.4]} 27... Nxd6 {[%clk 0:00:22.3]} 28. f4 {[%clk 0:01:20.1]} 28... Ke7
{[%clk 0:00:20.5]} 29. Kf1 {[%clk 0:01:20.5]} 29... Kd7 {[%clk 0:00:20.8]} 30.
Ke2 {[%clk 0:01:20]} 30... Kc6 {[%clk 0:00:21.4]} 31. b4 {[%clk 0:01:18.6]}
31... axb4 {[%clk 0:00:21.7]} 32. axb4 {[%clk 0:01:19.5]} 32... Kd5 {[%clk
0:00:21.1]} 33. Kd2 {[%clk 0:01:16.8]} 33... Kd4 {[%clk 0:00:20.2]} 34. b5
{[%clk 0:00:55]} 34... Kc5 {[%clk 0:00:19.8]} 35. Ke3 {[%clk 0:00:55.2]} 35...
Nxb5 {[%clk 0:00:19.3]} 36. Bxb5 {[%clk 0:00:54.1]} 36... Kxb5 {[%clk
0:00:20.2]} 37. Kd4 {[%clk 0:00:53.9]} 37... Kc6 {[%clk 0:00:19.8]} 38. Ke5
{[%clk 0:00:53.3]} 38... Kd7 {[%clk 0:00:20.3]} 39. f5 {[%clk 0:00:53.1]} 39...
Kc6 {[%clk 0:00:20.3]} 40. g4 {[%clk 0:00:40.6]} 40... Kc5 {[%clk 0:00:17.1]}
41. f4 {[%clk 0:00:33.8]} 41... Kc6 {[%clk 0:00:16.9]} 42. Ke4 {[%clk
0:00:25.6]} 42... Kd6 {[%clk 0:00:15.3]} 43. Kd4 {[%clk 0:00:25.2]} 43... Kc6
{[%clk 0:00:10.3]} 44. Ke5 {[%clk 0:00:21.6]} 44... Kc5 {[%clk 0:00:07.3]} 45.
Ke4 {[%clk 0:00:18.7]} 45... Kd6 {[%clk 0:00:04]} 46. Kd4 {[%clk 0:00:18.6]}
46... f6 {[%clk 0:00:04.2]} 47. Kc4 {[%clk 0:00:16.5]} 47... Kc6 {[%clk
0:00:04.6]} 48. Kd4 {[%clk 0:00:16.4]} 48... Kd6 {[%clk 0:00:05.2]} 49. Kc4
{[%clk 0:00:16.5]} 49... Kc6 {[%clk 0:00:05.7]} 50. Kd4 {[%clk 0:00:11.6]} 50...
Kd6 {[%clk 0:00:04.7]} 1/2-1/2

[Event "*** Titled Tuesday Blitz"]
[Site "Chess.com"]
[Date "2020.10.20"]
[Round "3"]
[White "Zkid"]
[Black "doons21"]
[Result "1/2-1/2"]
[WhiteElo "2820"]
[BlackElo "2563"]
[TimeControl "180+1"]
[EndTime "10:29:33 PDT"]
[Termination "Game drawn by repetition"]

1. e4 {[%clk 0:03:00.9]} 1... e6 {[%clk 0:02:58.5]} 2. d4 {[%clk 0:02:59.5]}
2... d5 {[%clk 0:02:57.3]} 3. Nc3 {[%clk 0:02:59.9]} 3... Bb4 {[%clk 0:02:56.9]}
4. Ne2 {[%clk 0:02:59]} 4... Nc6 {[%clk 0:02:56.6]} 5. e5 {[%clk 0:02:57.3]}
5... Nge7 {[%clk 0:02:48.6]} 6. a3 {[%clk 0:02:53.7]} 6... Ba5 {[%clk
0:02:48.3]} 7. b4 {[%clk 0:02:52.4]} 7... Bb6 {[%clk 0:02:48.2]} 8. Na4 {[%clk
0:02:49.6]} 8... Nf5 {[%clk 0:02:32.1]} 9. c3 {[%clk 0:02:47.7]} 9... f6 {[%clk
0:02:27.4]} 10. exf6 {[%clk 0:02:40.5]} 10... Qxf6 {[%clk 0:02:26.7]} 11. Ng3
{[%clk 0:02:37.1]} 11... O-O {[%clk 0:02:19.8]} 12. Nxf5 {[%clk 0:02:34.7]}
12... Qxf5 {[%clk 0:02:18.5]} 13. Be3 {[%clk 0:02:34.5]} 13... e5 {[%clk
0:02:10.1]} 14. Bd3 {[%clk 0:02:33.1]} 14... e4 {[%clk 0:02:01.3]} 15. Be2
{[%clk 0:02:31.2]} 15... Qg6 {[%clk 0:01:52.7]} 16. Qb3 {[%clk 0:02:26.9]} 16...
Ne7 {[%clk 0:01:45.8]} 17. O-O-O {[%clk 0:02:22.5]} 17... c6 {[%clk 0:01:36.5]}
18. Nxb6 {[%clk 0:02:15]} 18... axb6 {[%clk 0:01:36.3]} 19. h4 {[%clk
0:02:15.4]} 19... h5 {[%clk 0:01:25.1]} 20. g4 {[%clk 0:01:55.8]} 20... Bxg4
{[%clk 0:01:22.8]} 21. Rdg1 {[%clk 0:01:53.3]} 21... Qe6 {[%clk 0:01:03.2]} 22.
Bxg4 {[%clk 0:01:50.8]} 22... hxg4 {[%clk 0:01:02.7]} 23. h5 {[%clk 0:01:50.7]}
23... Nf5 {[%clk 0:01:00.6]} 24. Rg2 {[%clk 0:01:47]} 24... Nxe3 {[%clk
0:00:52.7]} 25. fxe3 {[%clk 0:01:47.1]} 25... Rf3 {[%clk 0:00:53.4]} 26. Rhg1
{[%clk 0:01:46.7]} 26... Raf8 {[%clk 0:00:47.4]} 27. Qd1 {[%clk 0:01:44.1]}
27... R8f7 {[%clk 0:00:29]} 28. Rxg4 {[%clk 0:01:25.7]} 28... Qh6 {[%clk
0:00:29.5]} 29. Rg5 {[%clk 0:01:22.1]} 29... Rxe3 {[%clk 0:00:28.6]} 30. Qd2
{[%clk 0:01:18.7]} 30... Rff3 {[%clk 0:00:25.6]} 31. Kb2 {[%clk 0:01:02.4]}
31... Rxc3 {[%clk 0:00:24.8]} 32. Rxg7+ {[%clk 0:00:31.9]} 32... Qxg7 {[%clk
0:00:23.7]} 33. Rxg7+ {[%clk 0:00:32.8]} 33... Kxg7 {[%clk 0:00:24.6]} 34. Qg5+
{[%clk 0:00:33.4]} 34... Kh8 {[%clk 0:00:20.3]} 35. Qe5+ {[%clk 0:00:26.8]}
35... Kh7 {[%clk 0:00:19.6]} 36. Qc7+ {[%clk 0:00:18]} 36... Kh6 {[%clk
0:00:19.9]} 37. Qxb7 {[%clk 0:00:18.2]} 37... Rb3+ {[%clk 0:00:20]} 38. Kc2
{[%clk 0:00:18.6]} 38... Rfc3+ {[%clk 0:00:19.4]} 39. Kd1 {[%clk 0:00:18.3]}
39... Rd3+ {[%clk 0:00:20.3]} 40. Kc2 {[%clk 0:00:18]} 40... Rbc3+ {[%clk
0:00:18.5]} 41. Kb2 {[%clk 0:00:18.2]} 41... b5 {[%clk 0:00:19]} 42. Qf7 {[%clk
0:00:17]} 42... Rg3 {[%clk 0:00:17.7]} 43. Qf4+ {[%clk 0:00:14]} 43... Kxh5
{[%clk 0:00:17.6]} 44. Qf5+ {[%clk 0:00:14.4]} 44... Kh4 {[%clk 0:00:17.8]} 45.
Qf4+ {[%clk 0:00:14.8]} 45... Kh3 {[%clk 0:00:18.2]} 46. Qh6+ {[%clk 0:00:14.4]}
46... Kg2 {[%clk 0:00:18.5]} 47. Qd2+ {[%clk 0:00:14.8]} 47... Kh1 {[%clk
0:00:18.4]} 48. Qd1+ {[%clk 0:00:14.2]} 48... Kh2 {[%clk 0:00:16.8]} 49. Qh5+
{[%clk 0:00:14.1]} 49... Kg1 {[%clk 0:00:16.4]} 50. Qd1+ {[%clk 0:00:14.4]}
50... Kf2 {[%clk 0:00:16.8]} 51. Qd2+ {[%clk 0:00:14.8]} 51... Kf1 {[%clk
0:00:16.7]} 52. Qd1+ {[%clk 0:00:15.1]} 52... Kg2 {[%clk 0:00:16.9]} 53. Qe2+
{[%clk 0:00:14.9]} 53... Kh1 {[%clk 0:00:13.8]} 54. Qd1+ {[%clk 0:00:14.8]}
54... Kh2 {[%clk 0:00:13.6]} 55. Qh5+ {[%clk 0:00:15]} 55... Rh3 {[%clk
0:00:14.2]} 56. Qe2+ {[%clk 0:00:14.6]} 56... Kg1 {[%clk 0:00:14.3]} 57. Qe1+
{[%clk 0:00:14.7]} 57... Kg2 {[%clk 0:00:14.7]} 58. Qe2+ {[%clk 0:00:15.2]}
58... Kg1 {[%clk 0:00:14.2]} 59. Qe1+ {[%clk 0:00:15.1]} 59... Kg2 {[%clk
0:00:14.6]} 60. Qe2+ {[%clk 0:00:15.5]} 60... Kg1 {[%clk 0:00:15.1]} 1/2-1/2

[Event "*** Titled Tuesday Blitz"]
[Site "Chess.com"]
[Date "2020.10.20"]
[Round "3"]
[White "AwareIdea"]
[Black "UmbertoConcelli"]
[Result "1/2-1/2"]
[WhiteElo "2474"]
[BlackElo "2707"]
[TimeControl "180+1"]
[EndTime "10:29:34 PDT"]
[Termination "Game drawn by repetition"]

1. d4 {[%clk 0:03:00.9]} 1... d5 {[%clk 0:02:59.1]} 2. c4 {[%clk 0:03:00.7]}
2... e6 {[%clk 0:02:59.3]} 3. Nc3 {[%clk 0:02:59.9]} 3... Be7 {[%clk 0:02:58.4]}
4. Nf3 {[%clk 0:02:59.3]} 4... Nf6 {[%clk 0:02:54.3]} 5. Bf4 {[%clk 0:02:58.7]}
5... O-O {[%clk 0:02:53.6]} 6. e3 {[%clk 0:02:58.2]} 6... Nbd7 {[%clk
0:02:52.8]} 7. c5 {[%clk 0:02:57.2]} 7... Nh5 {[%clk 0:02:50.4]} 8. Be5 {[%clk
0:02:56.8]} 8... f6 {[%clk 0:02:42.3]} 9. Bg3 {[%clk 0:02:56.3]} 9... c6 {[%clk
0:02:38.5]} 10. b4 {[%clk 0:02:49.8]} 10... g6 {[%clk 0:02:36]} 11. a4 {[%clk
0:02:47.2]} 11... e5 {[%clk 0:02:33.9]} 12. Nd2 {[%clk 0:02:23.5]} 12... exd4
{[%clk 0:02:29.2]} 13. exd4 {[%clk 0:02:22.5]} 13... f5 {[%clk 0:02:30.1]} 14.
Be2 {[%clk 0:02:09.6]} 14... f4 {[%clk 0:02:28.1]} 15. Bxh5 {[%clk 0:02:04.1]}
15... gxh5 {[%clk 0:02:23.2]} 16. Qxh5 {[%clk 0:02:00.3]} 16... fxg3 {[%clk
0:02:22.5]} 17. hxg3 {[%clk 0:02:01.2]} 17... Nf6 {[%clk 0:02:22.6]} 18. Qg5+
{[%clk 0:02:00.7]} 18... Kh8 {[%clk 0:02:22.3]} 19. O-O-O {[%clk 0:02:00.2]}
19... Rg8 {[%clk 0:02:17.7]} 20. Qh4 {[%clk 0:01:54]} 20... Bf5 {[%clk
0:02:15.8]} 21. Qf4 {[%clk 0:01:47.7]} 21... Bg6 {[%clk 0:02:14.6]} 22. f3
{[%clk 0:01:46.9]} 22... Qb8 {[%clk 0:02:12.8]} 23. Qe3 {[%clk 0:01:42.3]} 23...
Rg7 {[%clk 0:02:07.6]} 24. g4 {[%clk 0:01:41.8]} 24... Qf8 {[%clk 0:02:03.6]}
25. Rde1 {[%clk 0:01:39.8]} 25... Re8 {[%clk 0:02:01.9]} 26. Qf4 {[%clk
0:01:31.8]} 26... b6 {[%clk 0:02:01.8]} 27. Nb3 {[%clk 0:01:24]} 27... a5 {[%clk
0:02:00.9]} 28. bxa5 {[%clk 0:01:17.9]} 28... bxc5 {[%clk 0:02:00.1]} 29. dxc5
{[%clk 0:01:14.1]} 29... Rb8 {[%clk 0:01:51.6]} 30. Nd4 {[%clk 0:01:11.5]} 30...
Bxc5 {[%clk 0:01:49.3]} 31. Ne6 {[%clk 0:00:59.3]} 31... Ba3+ {[%clk 0:01:49.1]}
32. Kd1 {[%clk 0:00:59.1]} 32... Ne4 {[%clk 0:00:44.2]} 33. Nxf8 {[%clk
0:00:34.3]} 33... Nxc3+ {[%clk 0:00:43.5]} 34. Kd2 {[%clk 0:00:32.6]} 34... Rxf8
{[%clk 0:00:44.4]} 35. Qd4 {[%clk 0:00:13.6]} 35... c5 {[%clk 0:00:44]} 36. Qe5
{[%clk 0:00:10.1]} 36... Bb4 {[%clk 0:00:41.8]} 37. Kc1 {[%clk 0:00:09.1]} 37...
d4 {[%clk 0:00:35.5]} 38. Qd6 {[%clk 0:00:07.8]} 38... Rfg8 {[%clk 0:00:22]} 39.
Re7 {[%clk 0:00:07.2]} 39... Ba3+ {[%clk 0:00:13.3]} 40. Kd2 {[%clk 0:00:06.1]}
40... Rxe7 {[%clk 0:00:12.9]} 41. Qxe7 {[%clk 0:00:05.5]} 41... Bb4 {[%clk
0:00:06]} 42. Qf6+ {[%clk 0:00:04.8]} 42... Rg7 {[%clk 0:00:05.9]} 43. Qf8+
{[%clk 0:00:04.9]} 43... Rg8 {[%clk 0:00:05.8]} 44. Qf6+ {[%clk 0:00:05.1]}
44... Rg7 {[%clk 0:00:05.8]} 45. Qf8+ {[%clk 0:00:05.4]} 45... Rg8 {[%clk
0:00:05.9]} 46. Qf6+ {[%clk 0:00:05.7]} 1/2-1/2

[Event "*** Titled Tuesday Blitz"]
[Site "Chess.com"]
[Date "2020.10.20"]
[Round "3"]
[White "Maghalashvili"]
[Black "krasavetc"]
[Result "1-0"]
[WhiteElo "2665"]
[BlackElo "2329"]
[TimeControl "180+1"]
[EndTime "10:29:34 PDT"]
[Termination "Maghalashvili won on time"]

1. Nf3 {[%clk 0:01:45.2]} 1... Nc6 {[%clk 0:02:47.6]} 2. d4 {[%clk 0:01:44.5]}
2... d6 {[%clk 0:02:47.2]} 3. g3 {[%clk 0:01:44.4]} 3... d5 {[%clk 0:02:47.5]}
4. Bg2 {[%clk 0:01:44.4]} 4... Nf6 {[%clk 0:02:48.4]} 5. O-O {[%clk 0:01:44.8]}
5... e6 {[%clk 0:02:47.3]} 6. c4 {[%clk 0:01:44.9]} 6... dxc4 {[%clk 0:02:46.8]}
7. Nbd2 {[%clk 0:01:45]} 7... Be7 {[%clk 0:02:45.3]} 8. Nxc4 {[%clk 0:01:45.1]}
8... O-O {[%clk 0:02:44.2]} 9. a3 {[%clk 0:01:40.7]} 9... Rb8 {[%clk 0:02:33.6]}
10. b4 {[%clk 0:01:40]} 10... b5 {[%clk 0:02:26.2]} 11. Nce5 {[%clk 0:01:38.4]}
11... Bb7 {[%clk 0:02:22.9]} 12. Nxc6 {[%clk 0:01:26.4]} 12... Bxc6 {[%clk
0:02:21.7]} 13. Bb2 {[%clk 0:01:27.3]} 13... Ba8 {[%clk 0:02:12.5]} 14. Qc2
{[%clk 0:01:23.9]} 14... Be4 {[%clk 0:02:04.2]} 15. Qd2 {[%clk 0:01:18.6]} 15...
Nd5 {[%clk 0:01:54.5]} 16. Rfc1 {[%clk 0:01:16.4]} 16... Nb6 {[%clk 0:01:53.8]}
17. Qc3 {[%clk 0:01:12]} 17... Nc4 {[%clk 0:01:51.9]} 18. Nd2 {[%clk 0:01:11.9]}
18... Bxg2 {[%clk 0:01:49]} 19. Kxg2 {[%clk 0:01:04.7]} 19... c5 {[%clk
0:01:43.3]} 20. bxc5 {[%clk 0:00:44.3]} 20... e5 {[%clk 0:01:08.7]} 21. Nxc4
{[%clk 0:00:38]} 21... bxc4 {[%clk 0:01:09.6]} 22. dxe5 {[%clk 0:00:37.3]} 22...
Bxc5 {[%clk 0:01:02.7]} 23. e6 {[%clk 0:00:34.5]} 23... Qg5 {[%clk 0:00:47.3]}
24. Qxc4 {[%clk 0:00:28.8]} 24... Bb6 {[%clk 0:00:37.9]} 25. Bd4 {[%clk
0:00:24.2]} 25... fxe6 {[%clk 0:00:28.6]} 26. Qxe6+ {[%clk 0:00:23.9]} 26... Kh8
{[%clk 0:00:27.8]} 27. Bxb6 {[%clk 0:00:24]} 27... Rxb6 {[%clk 0:00:27.8]} 28.
Rc8 {[%clk 0:00:24.1]} 28... Rb8 {[%clk 0:00:23.6]} 29. Rxb8 {[%clk 0:00:23]}
29... Rxb8 {[%clk 0:00:24.5]} 30. Rd1 {[%clk 0:00:22.4]} 30... h6 {[%clk
0:00:22.7]} 31. Rd7 {[%clk 0:00:21.8]} 31... Rf8 {[%clk 0:00:22.2]} 32. Qd5
{[%clk 0:00:21.3]} 32... Qf6 {[%clk 0:00:20.9]} 33. Qd4 {[%clk 0:00:20.2]} 33...
Qc6+ {[%clk 0:00:19.6]} 34. Rd5 {[%clk 0:00:20.2]} 34... Rd8 {[%clk 0:00:17.3]}
35. e4 {[%clk 0:00:20.3]} 35... Rf8 {[%clk 0:00:17.6]} 36. Rd6 {[%clk
0:00:19.6]} 36... Qc2 {[%clk 0:00:16.4]} 37. Rxh6+ {[%clk 0:00:19.5]} 37... Kg8
{[%clk 0:00:16]} 38. Re6 {[%clk 0:00:18.6]} 38... Qe2 {[%clk 0:00:12.7]} 39. Qe3
{[%clk 0:00:16.8]} 39... Qg4 {[%clk 0:00:12.8]} 40. Re5 {[%clk 0:00:15.3]} 40...
Qd1 {[%clk 0:00:09.6]} 41. Rd5 {[%clk 0:00:14.7]} 41... Qg4 {[%clk 0:00:08.8]}
42. Rg5 {[%clk 0:00:13.9]} 42... Qe6 {[%clk 0:00:07.4]} 43. Qd4 {[%clk
0:00:13.5]} 43... Rf6 {[%clk 0:00:06.5]} 44. Re5 {[%clk 0:00:13.6]} 44... Qg4
{[%clk 0:00:05.4]} 45. Qd8+ {[%clk 0:00:12.8]} 45... Kh7 {[%clk 0:00:05.9]} 46.
Qd3 {[%clk 0:00:12.9]} 46... Kg8 {[%clk 0:00:05]} 47. Rf5 {[%clk 0:00:13]} 47...
Re6 {[%clk 0:00:02.3]} 48. Rf4 {[%clk 0:00:13.2]} 48... Qg6 {[%clk 0:00:01]} 49.
Qd5 {[%clk 0:00:13.3]} 1-0